fUSD/lending_fUSD_20250930
["ID","MTS","AMOUNT","RATE_DAILY","PERIOD"]
[388489042,1759206638007,-213.49692535,0.00017303,2]
[388489043,1759206638016,-207.63305879,0.00017303,2]
[388489044,1759206638026,-322.6107,0.00017303,2]
[388489045,1759206638037,-1603.22340432,0.00017315,2]
[388489046,1759206638047,-168.0,0.00017334,2]
[388489047,1759206638058,-312.81958641,0.00017365,2]
[388489048,1759206638067,-312.81958641,0.00017372,2]
[388489049,1759206638077,-167.29,0.00017372,2]
[388489050,1759206638086,-312.81958641,0.00017376,2]
[388489051,1759206638097,-1267.59175767,0.00017385,2]
[388489052,1759206638108,-1603.22340432,0.00017397,2]
[388489053,1759206638118,-250.61225252,0.00017398,2]
[388489054,1759206638128,-1267.59175767,0.00017405,2]
[388489055,1759206638138,-312.81958641,0.00017415,2]
[388489056,1759206638148,-312.81958641,0.00017416,2]
[388489057,1759206638159,-250.61225252,0.00017422,2]
[388489058,1759206638168,-341.6,0.00017424,2]
[388489059,1759206638177,-1267.59175767,0.00017432,2]
[388489060,1759206638187,-1267.59175767,0.00017432,2]
[388489061,1759206638201,-500.0,0.00017433,2]
[388489062,1759206638213,-312.81958641,0.00017434,2]
[388489063,1759206638223,-1267.59175767,0.00017434,2]
[388489064,1759206638233,-250.61225252,0.00017437,2]
[388489065,1759206638243,-1603.22340432,0.00017452,2]
[388489066,1759206638253,-233.41738166,0.00017453,2]
[388489067,1759206638269,-1034.17437601,0.00017453,2]
[388489068,1759206638279,-269.0,0.00017457,2]
[388489069,1759206638289,-250.61225252,0.00017458,2]
[388489070,1759206638298,-250.61225252,0.00017472,2]
[388489071,1759206638308,-312.81958641,0.00017484,2]
[388489072,1759206638319,-500.0,0.00017486,2]
[388489073,1759206638330,-1267.59175767,0.00017492,2]
[388489074,1759206638347,-155.447,0.00017496,2]
[388489075,1759206638357,-2000.0,0.000175,2]
[388489076,1759206638367,-232.8006,0.0001751,2]
[388489077,1759206638377,-277.9406,0.0001751,2]
[388489078,1759206638387,-1603.22340432,0.00017534,2]
[388489079,1759206638396,-473.38,0.00017553,2]
[388489080,1759206638406,-341.6,0.00017556,2]
[388489081,1759206638415,-500.0,0.00017575,2]
[388489082,1759206638425,-500.0,0.00017575,2]
[388489083,1759206638435,-1603.22340432,0.00017589,2]
[388489084,1759206638444,-22440.60921831,0.00017603,2]
[388489085,1759206638457,-1820.25351612,0.00017603,2]
[388489086,1759206638468,-1507.4682,0.0001761,2]
[388489087,1759206638477,-180.0,0.0001764,2]
[388489088,1759206638487,-1603.22340432,0.00017671,2]
[388489089,1759206638497,-150.0,0.0001768,2]
[388489090,1759206638507,-341.6,0.00017689,2]
[388489091,1759206638517,-269.0,0.00017719,2]
[388489092,1759206638527,-8602.47,0.00017728,2]
[388489093,1759206638536,-3967.64757241,0.00017728,2]
[388489094,1759206638549,-3883.07242759,0.00017728,2]
[388489095,1759206638558,-150.99,0.00017728,2]
[388489096,1759206638567,-282.6933324,0.00017728,2]
[388489097,1759206638579,-564.2466676,0.00017728,2]
[388489098,1759206638589,-999.99,0.00017728,2]
[388489099,1759206638598,-1178.74,0.00017728,2]
[388489100,1759206638608,-2339.75,0.00017728,2]
[388489101,1759206638618,-299.99,0.00017728,4]
[388489102,1759206638627,-961.54958156,0.00017728,2]
[388489107,1759206643382,-113.95556314,0.00017728,2]
[388489110,1759206648277,-8924.4848553,0.00017728,2]
[388489111,1759206648287,-2141.06,0.00017728,2]
[388489112,1759206648296,-236.05572905,0.0001775,2]
[388489113,1759206648310,-700.0,0.0001779,2]
[388489114,1759206648319,-341.6,0.00017821,2]
[388489115,1759206648330,-269.0,0.00017835,2]
[388489116,1759206648340,-269.0,0.00017844,2]
[388489117,1759206648351,-24260.86273439,0.00017848,2]
[388489118,1759206648360,-269.0,0.00017859,2]
[388489119,1759206648370,-1454.8329,0.00017885,2]
[388489120,1759206648381,-2126.8322,0.00017885,2]
[388489121,1759206648391,-864.5818804,0.0001789,2]
[388489122,1759206648401,-500.0,0.000179,6]
[388489123,1759206648411,-183.0,0.000179,2]
[388489124,1759206648421,-511.0,0.00017918,2]
[388489125,1759206648430,-341.6,0.00017953,2]
[388489126,1759206648440,-1000.0,0.00017981,2]
[388489127,1759206648449,-814.0,0.00017985,2]
[388489128,1759206648459,-1184.304,0.00017985,2]
[388489129,1759206648469,-4235.0,0.00017985,2]
[388489130,1759206648479,-1264.0,0.00017985,2]
[388489131,1759206648488,-657.893,0.00017989,2]
[388489132,1759206648497,-269.0,0.0001802,2]
[388489133,1759206648507,-1000.0,0.00018034,2]
[388489134,1759206648516,-341.6,0.00018086,2]
[388489135,1759206648526,-1000.0,0.00018123,2]
[388489136,1759206648535,-1000.0,0.00018123,2]
[388489137,1759206648544,-360.6415,0.00018165,2]
[388489138,1759206648554,-24260.86273439,0.00018193,2]
[388489139,1759206648563,-341.6,0.00018218,2]
[388489140,1759206648572,-1204.86,0.00018219,2]
[388489141,1759206648581,-151.77028139,0.00018258,2]
[388489142,1759206648590,-151.32322614,0.00018258,2]
[388489143,1759206648599,-500.0,0.00018258,2]
[388489144,1759206648610,-151.0994176,0.00018258,2]
[388489145,1759206648622,-1112.0,0.00018258,2]
[388489146,1759206648631,-296.2619456,0.00018258,2]
[388489147,1759206648642,-202.33703821,0.00018258,2]
[388489148,1759206648652,-150.0,0.00018258,2]
[388489149,1759206648663,-500.0,0.00018258,2]
[388489150,1759206648672,-151.86,0.00018264,2]
[388489151,1759206648682,-310.49,0.00018264,2]
[388489152,1759206648691,-1220.39,0.00018264,2]
[388489153,1759206648700,-180.78,0.00018275,2]
[388489154,1759206648710,-1425.0,0.00018292,2]
[388489155,1759206648720,-269.0,0.00018333,2]
[388489156,1759206648731,-248.71531821,0.00018335,2]
[388489157,1759206648740,-341.6,0.00018351,2]
[388489158,1759206648750,-1425.0,0.00018354,2]
[388489159,1759206648759,-1600.0,0.00018356,2]
[388489160,1759206648768,-269.0,0.00018359,2]
[388489161,1759206648777,-633.79578936,0.0001839,2]
[388489162,1759206648787,-12730.94731761,0.0001839,2]
[388489163,1759206648797,-159.78305775,0.00018399,2]
[388489164,1759206648807,-7336.0,0.000184,2]
[388489165,1759206648817,-1000.0,0.000184,2]
[388489166,1759206648827,-250.89949584,0.000184,2]
[388489167,1759206648836,-151.0,0.000184,2]
[388489168,1759206648845,-151.0,0.000184,2]
[388489169,1759206648855,-269.0,0.00018407,2]
[388489170,1759206648865,-595.67530892,0.00018423,2]
[388489171,1759206648875,-12730.94731759,0.00018433,2]
[388489172,1759206648884,-1000.0,0.00018433,2]
[388489173,1759206648893,-11961.1419088,0.00018438,2]
[388489174,1759206648903,-2044.6847359,0.00018438,2]
[388489175,1759206648912,-1425.0,0.00018451,2]
[388489176,1759206648921,-12730.94731759,0.00018477,2]
[388489177,1759206648931,-1425.0,0.00018477,2]
[388489178,1759206648940,-2500.0,0.00018477,2]
[388489179,1759206648949,-1425.0,0.0001848,2]
[388489180,1759206648958,-1680.0,0.00018481,2]
[388489181,1759206648968,-341.6,0.00018483,2]
[388489182,1759206648978,-147865.66150998,0.0001849,2]
[388489183,1759206648992,-285601.20520383,0.0001849,2]
[388489184,1759206649001,-85841.29793189,0.0001849,3]
[388489185,1759206649498,-10540.0,0.0001849,3]
[388489186,1759206649514,-869.36176289,0.0001849,3]
[388489210,1759206912802,2256.00404705,0.000165,2]
[388489212,1759207265174,150.0,0.000164,2]
[388489238,1759207375843,-500.0,0.000248,60]
[388489239,1759207375868,-500.0,0.000249,60]
[388489240,1759207375894,-500.0,0.00025,60]
[388489247,1759207416266,3025.97316704,0.000166,2]
[388489260,1759207576978,50910.89481,0.00025,60]
[388489262,1759207665006,-151.41267065,0.00016989,2]
[388489263,1759207665038,-156.60739806,0.00016989,2]
[388489264,1759207665064,-153.79442885,0.00016989,2]
[388489265,1759207665090,-150.0,0.00016989,2]
[388489274,1759207748474,-167.04,0.00017318,2]
[388489275,1759207748502,-282.65,0.00017333,2]
[388489276,1759207748529,-1000.0,0.00017353,2]
[388489277,1759207748556,-19930.84020011,0.00017399,2]
[388489278,1759207748583,-19930.84020011,0.000174,2]
[388489279,1759207748612,-1076.81510222,0.00017471,2]
[388489296,1759207790317,150.0,0.000164,2]
[388489345,1759207832296,-1852.42,0.00017318,2]
[388489346,1759207832307,-15651.60661636,0.00017471,2]
[388489380,1759207838160,-468.89330135,0.00017471,2]
[388489382,1759207840227,-1156.8,0.00017471,2]
[388489400,1759207843400,-628.525153,0.00017471,2]
[388489401,1759207843414,-423.42299998,0.00017471,2]
[388489406,1759207844074,-524.7770272,0.00017471,2]
[388489407,1759207844085,-19930.84020011,0.00017472,2]
[388489409,1759207844095,-3364.1951297,0.00017473,2]
[388489410,1759207844106,-8181.84601265,0.00017473,2]
[388489416,1759207847921,-700.06836508,0.00017473,2]
[388489615,1759208055933,160.39,8.652e-05,2]
[388489618,1759208315373,150.0,0.000154,2]
[388489619,1759208315784,150.0,0.0001658,2]
[388489753,1759208840761,150.0,0.000144,2]
[388489754,1759208840865,150.0,0.0001558,2]
[388489755,1759208962987,-150.0,0.0001677,2]
[388489756,1759208963011,-8.64458076,0.00016844,2]
[388489776,1759209032284,-566.54,0.00016838,3]
[388489777,1759209032296,-198.95907078,0.00016844,2]
[388489778,1759209032307,-3103.55,0.00016851,2]
[388489779,1759209032319,-162.91,0.00016919,2]
[388489780,1759209032331,-150.0,0.00016989,2]
[388489781,1759209032342,-859.52776361,0.00017058,2]
[388489782,1759209032352,-196.4256042,0.00017059,2]
[388489783,1759209032363,-552.80140324,0.00017074,2]
[388489784,1759209032374,-487.3886,0.00017118,2]
[388489785,1759209032384,-164.27,0.00017159,2]
[388489786,1759209032395,-552.26,0.00017184,2]
[388489787,1759209032407,-476.16,0.00017215,2]
[388489788,1759209032418,-271.82,0.0001722,2]
[388489789,1759209032428,-1000.0,0.00017246,2]
[388489790,1759209032439,-747.61704,0.000173,2]
[388489791,1759209032451,-180.63,0.00017303,2]
[388489792,1759209032462,-370.0,0.00017316,2]
[388489793,1759209032473,-1200.0,0.00017316,2]
[388489794,1759209032485,-246.0,0.00017317,2]
[388489795,1759209032496,-300.0,0.00017317,2]
[388489796,1759209032507,-358.0,0.00017443,2]
[388489797,1759209032518,-2830.39630229,0.00017444,2]
[388489798,1759209032529,-8260.13072239,0.00017444,2]
[388489799,1759209032540,-599.87589872,0.00017444,2]
[388489800,1759209032552,-599.60298507,0.00017444,2]
[388489801,1759209032562,-239.84119403,0.00017444,2]
[388489802,1759209032573,-1178.033,0.00017471,2]
[388489803,1759209032584,-1396.339,0.00017471,2]
[388489804,1759209032595,-3851.12696497,0.00017499,2]
[388489805,1759209032605,-171.73,0.00017712,2]
[388489806,1759209032616,-4204.932,0.00017761,2]
[388489807,1759209032627,-5137.668,0.00017761,2]
[388489808,1759209032637,-4233.0,0.00017761,2]
[388489809,1759209032647,-2000.0,0.000178,2]
[388489810,1759209032658,-1000.0,0.000178,2]
[388489811,1759209032668,-473.47,0.000178,2]
[388489813,1759209032679,-300.0,0.00017832,2]
[388489815,1759209032689,-474.52590314,0.00017876,2]
[388489818,1759209032700,-300.0,0.00017896,2]
[388489819,1759209032711,-354.55,0.000179,2]
[388489820,1759209032721,-806.89,0.000179,2]
[388489821,1759209032732,-480.83,0.000179,2]
[388489822,1759209032742,-473.47,0.000179,2]
[388489823,1759209032752,-600.0,0.000179,6]
[388489824,1759209032763,-248.21404957,0.000179,2]
[388489825,1759209032774,-650.673,0.00017934,2]
[388489826,1759209032784,-1380.93,0.00017935,2]
[388489827,1759209032795,-151.0,0.00017935,2]
[388489828,1759209032805,-322.6107,0.00017935,2]
[388489829,1759209032817,-623.58710448,0.00017935,2]
[388489830,1759209032827,-200.0,0.00017935,2]
[388489831,1759209032838,-500.0,0.00017935,2]
[388489832,1759209032848,-151.0,0.00017935,2]
[388489833,1759209032859,-151.0,0.00017935,2]
[388489834,1759209032870,-151.0,0.00017935,2]
[388489835,1759209032880,-152.38481926,0.00017935,2]
[388489836,1759209032891,-151.0,0.00017935,2]
[388489837,1759209032904,-151.0,0.00017935,2]
[388489838,1759209032914,-151.0,0.00017935,2]
[388489839,1759209032924,-500.0,0.00017935,2]
[388489840,1759209032935,-151.0,0.00017935,2]
[388489841,1759209032945,-500.0,0.00017935,2]
[388489842,1759209032955,-151.0,0.00017935,2]
[388489843,1759209032966,-151.0,0.00017935,2]
[388489844,1759209032976,-500.0,0.00017935,2]
[388489845,1759209032986,-151.0,0.00017935,2]
[388489846,1759209032997,-500.0,0.00017935,2]
[388489847,1759209033010,-151.0,0.00017935,2]
[388489848,1759209033024,-151.0,0.00017935,2]
[388489849,1759209033035,-500.0,0.00017935,2]
[388489850,1759209033046,-151.0,0.00017935,2]
[388489851,1759209033057,-500.0,0.00017935,2]
[388489852,1759209033068,-151.0,0.00017935,2]
[388489853,1759209033080,-500.0,0.00017935,2]
[388489854,1759209033090,-500.0,0.00017935,2]
[388489855,1759209033101,-500.0,0.00017935,2]
[388489856,1759209033112,-151.0,0.00017935,2]
[388489857,1759209033122,-194.70456109,0.00017935,2]
[388489858,1759209033132,-500.0,0.00017935,2]
[388489859,1759209033142,-251.68379486,0.00017935,2]
[388489860,1759209033156,-258.45456841,0.00017935,2]
[388489861,1759209033166,-200.0,0.00017935,2]
[388489862,1759209033176,-151.0,0.00017935,2]
[388489863,1759209033186,-160.0,0.00017935,2]
[388489864,1759209033196,-500.0,0.00017935,2]
[388489865,1759209033206,-500.0,0.00017935,2]
[388489866,1759209033216,-200.0,0.00017935,2]
[388489867,1759209033226,-200.0,0.00017935,2]
[388489868,1759209033236,-200.0,0.00017935,2]
[388489869,1759209033246,-200.0,0.00017935,2]
[388489870,1759209033256,-190.97110613,0.00017935,2]
[388489871,1759209033266,-500.0,0.00017935,2]
[388489872,1759209033275,-484.47516921,0.00017935,2]
[388489873,1759209033285,-264.15826762,0.00017936,2]
[388489874,1759209033295,-150.07731659,0.00017945,2]
[388489875,1759209033305,-500.0,0.00017945,2]
[388489876,1759209033315,-159.78532256,0.00017945,2]
[388489877,1759209033325,-174.87299789,0.00017945,2]
[388489878,1759209033335,-66878.64560028,0.00017946,2]
[388489879,1759209033348,-24905.04099957,0.00017946,2]
[388489880,1759209033360,-2212.49614939,0.00017946,2]
[388489881,1759209033372,-1012.63548943,0.00017946,2]
[388489882,1759209033384,-299.9298007,0.00017946,2]
[388489883,1759209033396,-693.64931429,0.00017946,2]
[388489884,1759209033408,-2901.33309491,0.00017946,2]
[388489885,1759209033420,-342.20573184,0.00017946,2]
[388489886,1759209033437,-321.95118886,0.00017946,2]
[388489887,1759209033449,-1684.50551895,0.00017946,2]
[388489888,1759209039733,-26051.69332626,0.00017946,2]
[388489889,1759209039744,-1202.8078043,0.00017946,2]
[388489890,1759209039755,-1118.8,0.00017946,2]
[388489892,1759209040333,-1106.60530828,0.00017946,2]
[388489893,1759209040345,-1144.5,0.00017946,2]
[388489895,1759209043343,-351.14989057,0.00017934,2]
[388489896,1759209043357,-148.85010943,0.00017934,2]
[388489897,1759209043367,-500.0,0.00017934,2]
[388489898,1759209043377,-500.0,0.00017934,2]
[388489899,1759209043389,-611.07718458,0.00017934,2]
[388489900,1759209043399,-500.0,0.00017934,2]
[388489901,1759209043409,-1063.1255812,0.00017946,2]
[388489902,1759209043453,-2348.2,0.00017946,2]
[388489903,1759209043563,-13387.93531595,0.00017946,2]
[388489904,1759209043620,-241444.11981822,0.00017946,2]
[388489905,1759209043630,-150.0,0.00017946,2]
[388489906,1759209043641,-1263.0,0.00017946,2]
[388489907,1759209043651,-1306.0,0.00017946,2]
[388489908,1759209043660,-603.0,0.00017946,2]
[388489909,1759209043670,-1584.0,0.00017946,2]
[388489910,1759209043680,-570.0,0.00017946,2]
[388489911,1759209043690,-814.0,0.00017946,2]
[388489912,1759209043700,-150.0,0.0001795,2]
[388489913,1759209043710,-170.05,0.00017959,2]
[388489914,1759209043721,-2374.64,0.00018,2]
[388489915,1759209043730,-150.0,0.00018,2]
[388489916,1759209043741,-1089.33,0.00018,2]
[388489917,1759209043751,-201.017468,0.00018,2]
[388489918,1759209043761,-436.25158132,0.00018008,2]
[388489919,1759209043771,-1196.09,0.00018055,2]
[388489920,1759209043780,-824.42,0.00018055,2]
[388489921,1759209043790,-555.31,0.00018055,2]
[388489922,1759209043802,-175.48,0.00018055,2]
[388489923,1759209043812,-175.48,0.00018055,2]
[388489924,1759209043823,-175.48,0.000181,2]
[388489925,1759209043833,-248.21404957,0.000181,2]
[388489926,1759209043845,-576.25531488,0.0001813,2]
[388489927,1759209043855,-248.21404957,0.000182,2]
[388489928,1759209043870,-633.79578935,0.00018204,2]
[388489929,1759209043880,-1380.93,0.00018209,2]
[388489930,1759209043889,-300.0,0.00018225,2]
[388489931,1759209043899,-350.85,0.00018239,2]
[388489932,1759209043909,-1195.83,0.00018239,2]
[388489933,1759209043919,-167.67,0.00018239,2]
[388489934,1759209043928,-412.31,0.00018239,2]
[388489935,1759209043937,-1089.2,0.00018239,2]
[388489936,1759209043946,-1094.66184528,0.00018245,2]
[388489937,1759209043956,-8911.66312234,0.00018253,2]
[388489938,1759209043966,-500.0,0.00018258,2]
[388489939,1759209043976,-500.0,0.00018258,2]
[388489940,1759209043985,-500.0,0.00018258,2]
[388489941,1759209043995,-150.75292765,0.00018258,2]
[388489942,1759209044005,-500.0,0.00018258,2]
[388489943,1759209044015,-500.0,0.00018258,2]
[388489944,1759209044027,-1396.0,0.00018258,2]
[388489945,1759209044037,-1065.0,0.00018258,2]
[388489946,1759209044047,-500.0,0.00018258,2]
[388489947,1759209044056,-168.0,0.00018283,2]
[388489948,1759209044066,-3394.45,0.000183,2]
[388489949,1759209044076,-747.61704,0.000183,2]
[388489950,1759209044086,-700.0,0.00018304,2]
[388489951,1759209044097,-8911.66312231,0.00018314,2]
[388489953,1759209044107,-200.0,0.00018352,2]
[388489955,1759209044119,-11285.7935454,0.00018353,2]
[388489956,1759209044128,-532.0451429,0.00018353,2]
[388489959,1759209044138,-3109.5845986,0.00018353,2]
[388489960,1759209044148,-221.14505652,0.00018356,2]
[388489961,1759209044158,-151.0,0.00018361,2]
[388489962,1759209044167,-168.0,0.00018365,2]
[388489963,1759209044177,-500.0,0.00018373,2]
[388489964,1759209044187,-500.0,0.00018373,2]
[388489965,1759209044197,-500.0,0.00018373,2]
[388489966,1759209044207,-500.0,0.00018373,2]
[388489967,1759209044216,-8911.66312231,0.00018375,2]
[388489968,1759209044225,-1000.0,0.0001839,2]
[388489969,1759209044235,-5000.0,0.0001839,2]
[388489970,1759209044244,-161.44474465,0.0001839,2]
[388489971,1759209044254,-3008.4291419,0.0001839,2]
[388489972,1759209044264,-225.80954622,0.0001839,2]
[388489973,1759209044275,-657.07777156,0.0001839,2]
[388489974,1759209044285,-248.21404957,0.000184,2]
[388489975,1759209044295,-168.0,0.0001841,2]
[388489976,1759209044306,-8911.66312231,0.00018435,2]
[388489977,1759209044315,-3008.42914185,0.00018436,2]
[388489978,1759209044325,-241.6596187,0.00018447,2]
[388489979,1759209044334,-2000.0,0.00018447,2]
[388489980,1759209044344,-180.63,0.00018457,2]
[388489981,1759209044354,-151.0,0.00018465,2]
[388489982,1759209044365,-500.0,0.00018473,2]
[388489983,1759209044375,-500.0,0.00018473,2]
[388489984,1759209044385,-500.0,0.00018473,2]
[388489985,1759209044394,-500.0,0.00018473,2]
[388489986,1759209044404,-500.0,0.00018473,2]
[388489987,1759209044413,-417.67749505,0.00018481,2]
[388490091,1759209366947,150.0,0.000162,2]
[388490105,1759209415243,154753.0,0.000256,120]
[388490431,1759209892717,150.0,0.000152,2]
[388490432,1759209893090,150.0,0.0001638,2]
[388490451,1759209918499,220.0,0.00016602,2]
[388490452,1759209922066,161.92,8.461e-05,2]
[388490466,1759210119983,2201.71318855,0.00015,2]
[388490677,1759210231420,-164.27,0.00016804,2]
[388490678,1759210231431,-137.37832075,0.00016988,2]
[388490679,1759210231479,-250.08904908,0.00016988,2]
[388490680,1759210231492,-812.53263017,0.00016988,2]
[388490681,1759210231504,-150.0,0.00016989,2]
[388490682,1759210231515,-235.11127902,0.00016989,2]
[388490683,1759210231525,-281.2837631,0.00016989,2]
[388490684,1759210231536,-150.0,0.00016989,2]
[388490685,1759210231546,-150.0,0.00016989,2]
[388490686,1759210231564,-150.0,0.00016989,2]
[388490687,1759210231574,-150.0,0.00016989,2]
[388490688,1759210231585,-150.91,0.00017155,2]
[388490689,1759210231594,-150.0,0.00017273,7]
[388490690,1759210231606,-300.0,0.00017297,2]
[388490691,1759210231616,-300.0,0.00017297,2]
[388490692,1759210231627,-459.67,0.00017299,2]
[388490693,1759210231638,-3830.59,0.00017299,2]
[388490694,1759210231648,-226.79,0.00017372,2]
[388490695,1759210231658,-110.85827522,0.00017375,2]
[388490696,1759210231676,-1005.02358403,0.00017375,2]
[388490697,1759210231686,-1115.88185925,0.0001738,2]
[388490698,1759210231697,-5511.41580408,0.00017391,2]
[388490699,1759210231716,-1166.69679799,0.00017391,2]
[388490746,1759210237482,-1239.23805153,0.00017391,2]
[388490747,1759210237495,-3348.0,0.00017391,2]
[388490748,1759210237553,-7905.69376682,0.00017391,2]
[388490749,1759210237563,-157.18751114,0.00017393,2]
[388490750,1759210237575,-58.50007944,0.00017393,2]
[388490751,1759210237586,-1115.88185925,0.00017398,2]
[388490752,1759210237595,-215.68759058,0.00017403,2]
[388490753,1759210237611,-26.08913571,0.00017403,2]
[388490754,1759210237624,-1089.79272354,0.00017403,2]
[388490755,1759210237634,-10397.20727646,0.00017405,2]
[388490756,1759210237646,-1116.0,0.00017405,2]
[388490964,1759210239941,-1039.73120478,0.00017405,2]
[388490967,1759210239954,-325.75105254,0.00017405,2]
[388490969,1759210239965,-6224.12124705,0.00017405,2]
[388490971,1759210239978,-68.23363959,0.00017405,2]
[388490973,1759210239987,-352.72636064,0.00017411,2]
[388491236,1759210242519,-8367.27260256,0.00017411,2]
[388491239,1759210242534,-94.0610368,0.00017411,2]
[388491241,1759210242544,-523.8989632,0.00017418,2]
[388491243,1759210242558,-952.4835028,0.00017418,2]
[388491245,1759210242572,-704.78706546,0.00017418,2]
[388491248,1759210242585,-388.945,0.00017418,2]
[388491250,1759210242602,-335.01,0.00017418,2]
[388491253,1759210242615,-338.36,0.00017418,2]
[388491255,1759210242629,-15927.55988896,0.00017418,2]
[388491257,1759210242641,-215.68759058,0.0001742,2]
[388491260,1759210242653,-5462.97643916,0.0001743,2]
[388491524,1759210245324,-0.0524342,0.0001743,2]
[388491526,1759210245337,-796.61565758,0.0001743,2]
[388491527,1759210245350,-1409.55101737,0.0001743,2]
[388491582,1759210245682,-1048.22499999,0.0001743,2]
[388491584,1759210245694,-1281.54440585,0.0001743,2]
[388491587,1759210245706,-1160.12473585,0.0001743,2]
[388491592,1759210245742,-1026.49999994,0.0001743,2]
[388491601,1759210245818,-6985.45473048,0.0001743,2]
[388491603,1759210245828,-215.68759058,0.0001743,2]
[388491606,1759210245838,-19171.04442042,0.00017439,2]
[388491608,1759210245848,-1115.88185925,0.00017442,2]
[388491610,1759210245858,-215.68759058,0.00017447,2]
[388491612,1759210245870,-1469.91589502,0.00017455,2]
[388491615,1759210245887,-17701.1285254,0.00017455,2]
[388491617,1759210245897,-1115.88185925,0.00017457,2]
[388491619,1759210245908,-215.68759058,0.00017465,2]
[388491674,1759210246401,-4290.66,0.00017472,2]
[388491678,1759210246440,-19171.04442042,0.00017475,2]
[388491680,1759210246451,-215.68759058,0.00017476,2]
[388491682,1759210246460,-1000.0,0.00017478,2]
[388491685,1759210246470,-1115.88185925,0.00017492,2]
[388491687,1759210246479,-6026.56564388,0.000175,2]
[388491688,1759210246493,-250.0,0.00017531,2]
[388491690,1759210246503,-150.0,0.0001757,2]
[388491692,1759210246512,-334.55,0.00017578,2]
[388491694,1759210246522,-543.94,0.00017678,2]
[388491696,1759210246533,-248.21404957,0.000177,2]
[388491698,1759210246543,-474.52590314,0.00017761,2]
[388491700,1759210246552,-412.21,0.00017778,2]
[388491702,1759210246563,-2000.0,0.000178,2]
[388491704,1759210246573,-600.0,0.000178,6]
[388491706,1759210246583,-4695.58048682,0.00017823,2]
[388491708,1759210246592,-287.27202205,0.00017824,2]
[388491710,1759210246601,-2364.97556402,0.00017824,2]
[388491712,1759210246610,-201.88653368,0.00017824,2]
[388491714,1759210246619,-162.44563702,0.00017824,2]
[388491716,1759210246629,-633.79578935,0.00017824,2]
[388491718,1759210246638,-1314.15554312,0.00017824,2]
[388491720,1759210246648,-5346.99787344,0.00017824,2]
[388491722,1759210246658,-203.22859158,0.00017824,2]
[388491724,1759210246667,-5000.0,0.00017824,2]
[388491726,1759210246676,-1200.0,0.000179,6]
[388491728,1759210246685,-281.3073643,0.00017906,2]
[388491730,1759210246694,-239.84119403,0.00017914,2]
[388491732,1759210246704,-403.86572198,0.00017914,2]
[388491734,1759210246714,-157.8,0.00017914,2]
[388491736,1759210246723,-157.8,0.00017914,2]
[388491738,1759210246732,-687.59,0.00017914,2]
[388491740,1759210246741,-687.59,0.00017914,2]
[388491742,1759210246751,-222.97165095,0.00017914,2]
[388491744,1759210246760,-472.41109853,0.00017923,2]
[388491746,1759210246770,-290.11968718,0.00017923,2]
[388491748,1759210246779,-239.96791009,0.00017923,2]
[388491749,1759210246788,-166.56619918,0.00017923,2]
[388491751,1759210246797,-155080.01946641,0.00017924,2]
[388492198,1759210418253,150.0,0.000161,2]
[388492201,1759210458666,-2000.0,0.000209,30]
[388492219,1759210682437,-150.0,0.00016904,7]
[388492220,1759210682461,-150.0,0.00017113,2]
[388492222,1759210686748,-152.36797827,0.00017113,2]
[388492223,1759210689864,-193.97202173,0.00017113,2]
[388492224,1759210694877,-152.9,0.00017113,2]
[388492225,1759210697593,-259.46,0.00017113,2]
[388492232,1759210740069,-3000.0,0.000209,30]
[388492370,1759210932725,152.9,8.416e-05,2]
[388492372,1759210937122,-359.56,0.00016911,2]